[Event "*** Titled Tuesday Blitz"]
[Site "Chess.com"]
[Date "2021.03.09"]
[Round "10"]
[White "Deepweb2020"]
[Black "NateSolon"]
[Result "0-1"]
[WhiteElo "2469"]
[BlackElo "2600"]
[TimeControl "180+1"]
[EndTime "11:59:02 PST"]
[Termination "NateSolon won by checkmate"]

1. d4 {[%clk 0:03:00.9]} 1... Nf6 {[%clk 0:02:59.8]} 2. c4 {[%clk 0:03:00.1]}
2... e6 {[%clk 0:03:00.2]} 3. g3 {[%clk 0:02:59.4]} 3... d5 {[%clk 0:02:59.9]}
4. Nf3 {[%clk 0:02:57.2]} 4... dxc4 {[%clk 0:02:59.6]} 5. Bg2 {[%clk 0:02:55.9]}
5... a6 {[%clk 0:02:59.9]} 6. O-O {[%clk 0:02:50.4]} 6... Nc6 {[%clk 0:02:59.9]}
7. a4 {[%clk 0:02:47.8]} 7... Rb8 {[%clk 0:02:55.1]} 8. Bg5 {[%clk 0:02:35.9]}
8... Be7 {[%clk 0:02:45.7]} 9. Nc3 {[%clk 0:02:04]} 9... O-O {[%clk 0:02:41.8]}
10. e4 {[%clk 0:02:02.1]} 10... b5 {[%clk 0:02:23.9]} 11. e5 {[%clk 0:01:54.4]}
11... Nd5 {[%clk 0:02:22.2]} 12. Ne4 {[%clk 0:01:35.8]} 12... Bxg5 {[%clk
0:02:10.9]} 13. Nfxg5 {[%clk 0:01:33.3]} 13... h6 {[%clk 0:02:11]} 14. Nf3
{[%clk 0:01:29]} 14... Nb6 {[%clk 0:01:37.6]} 15. Nc5 {[%clk 0:01:21.3]} 15...
Nb4 {[%clk 0:01:30.3]} 16. a5 {[%clk 0:01:11.3]} 16... Nd7 {[%clk 0:01:27.2]}
17. Ne4 {[%clk 0:00:52.6]} 17... Bb7 {[%clk 0:01:24.3]} 18. Nh4 {[%clk
0:00:47.5]} 18... Nd3 {[%clk 0:01:14.1]} 19. b3 {[%clk 0:00:38.2]} 19... Bd5
{[%clk 0:00:56.8]} 20. f4 {[%clk 0:00:36]} 20... c5 {[%clk 0:00:48.9]} 21. f5
{[%clk 0:00:30.7]} 21... N7xe5 {[%clk 0:00:43.2]} 22. dxe5 {[%clk 0:00:25.6]}
22... Bxe4 {[%clk 0:00:43.3]} 23. f6 {[%clk 0:00:15.2]} 23... Qd4+ {[%clk
0:00:40.7]} 24. Kh1 {[%clk 0:00:14.9]} 24... Bxg2+ {[%clk 0:00:38.7]} 25. Nxg2
{[%clk 0:00:13.2]} 25... Nxe5 {[%clk 0:00:35]} 26. Qh5 {[%clk 0:00:07.3]} 26...
Nd3 {[%clk 0:00:29]} 27. Rad1 {[%clk 0:00:02.5]} 27... Nf2+ {[%clk 0:00:24.6]}
28. Kg1 {[%clk 0:00:02.3]} 28... Nh3+ {[%clk 0:00:24.1]} 29. Kh1 {[%clk
0:00:02.4]} 29... Qg1+ {[%clk 0:00:24.3]} 30. Rxg1 {[%clk 0:00:03.3]} 30... Nf2#
{[%clk 0:00:25.2]} 0-1

[Event "*** Titled Tuesday Blitz"]
[Site "Chess.com"]
[Date "2021.03.09"]
[Round "10"]
[White "arctic_t00"]
[Black "lamomiablanca"]
[Result "1-0"]
[WhiteElo "2539"]
[BlackElo "2416"]
[TimeControl "180+1"]
[EndTime "11:59:03 PST"]
[Termination "arctic_t00 won on time"]

1. Nf3 {[%clk 0:03:00.9]} 1... Nf6 {[%clk 0:02:58.8]} 2. g3 {[%clk 0:03:01.4]}
2... g6 {[%clk 0:02:57.7]} 3. Bg2 {[%clk 0:03:02]} 3... Bg7 {[%clk 0:02:58.3]}
4. O-O {[%clk 0:03:02.9]} 4... O-O {[%clk 0:02:58.8]} 5. d4 {[%clk 0:03:03.6]}
5... d5 {[%clk 0:02:57.1]} 6. c4 {[%clk 0:03:02.6]} 6... c6 {[%clk 0:02:57.1]}
7. cxd5 {[%clk 0:03:02.2]} 7... cxd5 {[%clk 0:02:57.2]} 8. Ne5 {[%clk
0:03:03.1]} 8... e6 {[%clk 0:02:55.9]} 9. Nc3 {[%clk 0:03:01.2]} 9... Nfd7
{[%clk 0:02:56.1]} 10. f4 {[%clk 0:02:58]} 10... Nc6 {[%clk 0:02:52]} 11. Be3
{[%clk 0:02:55.9]} 11... Nb6 {[%clk 0:02:45.9]} 12. b3 {[%clk 0:02:52.4]} 12...
Bd7 {[%clk 0:02:45.6]} 13. Rc1 {[%clk 0:02:51.8]} 13... a6 {[%clk 0:02:44.3]}
14. Bf2 {[%clk 0:02:50]} 14... Rc8 {[%clk 0:02:38.1]} 15. g4 {[%clk 0:02:31.8]}
15... Qe7 {[%clk 0:02:32.7]} 16. e3 {[%clk 0:02:14.4]} 16... f6 {[%clk
0:02:29.6]} 17. Nxd7 {[%clk 0:02:09.7]} 17... Qxd7 {[%clk 0:02:29]} 18. e4
{[%clk 0:01:53.6]} 18... dxe4 {[%clk 0:02:19.3]} 19. Nxe4 {[%clk 0:01:53.2]}
19... Rfd8 {[%clk 0:01:50.4]} 20. Nc5 {[%clk 0:01:51.1]} 20... Qf7 {[%clk
0:01:48.5]} 21. Qe2 {[%clk 0:01:41]} 21... Nxd4 {[%clk 0:01:41.3]} 22. Bxd4
{[%clk 0:01:40.7]} 22... Rxd4 {[%clk 0:01:41.1]} 23. Nxe6 {[%clk 0:01:40.7]}
23... Rxc1 {[%clk 0:01:07.3]} 24. Rxc1 {[%clk 0:01:40.3]} 24... Rd6 {[%clk
0:01:02.9]} 25. Nxg7 {[%clk 0:01:19.8]} 25... Kxg7 {[%clk 0:01:00.2]} 26. Qe3
{[%clk 0:01:02.1]} 26... Nd5 {[%clk 0:00:54.4]} 27. Qd4 {[%clk 0:00:55.2]} 27...
Rd7 {[%clk 0:00:47.9]} 28. g5 {[%clk 0:00:47.1]} 28... a5 {[%clk 0:00:25.7]} 29.
Bh3 {[%clk 0:00:44.3]} 29... Rd8 {[%clk 0:00:19.7]} 30. Rd1 {[%clk 0:00:44.3]}
30... Qe7 {[%clk 0:00:07.8]} 31. Bg2 {[%clk 0:00:32.5]} 31... Nc3 {[%clk
0:00:05.8]} 32. gxf6+ {[%clk 0:00:28.9]} 32... Qxf6 {[%clk 0:00:03.4]} 33. Qxf6+
{[%clk 0:00:28.7]} 1-0

[Event "*** Titled Tuesday Blitz"]
[Site "Chess.com"]
[Date "2021.03.09"]
[Round "10"]
[White "BillieKimbah"]
[Black "Skatchkov_V"]
[Result "1-0"]
[WhiteElo "2870"]
[BlackElo "2639"]
[TimeControl "180+1"]
[EndTime "11:59:04 PST"]
[Termination "BillieKimbah won by resignation"]

1. b3 {[%clk 0:03:00.9]} 1... Nf6 {[%clk 0:02:57]} 2. Bb2 {[%clk 0:03:01]} 2...
d5 {[%clk 0:02:57.2]} 3. e3 {[%clk 0:02:55.4]} 3... c5 {[%clk 0:02:57.3]} 4. Nf3
{[%clk 0:02:53.4]} 4... g6 {[%clk 0:02:56]} 5. c4 {[%clk 0:02:52.6]} 5... Bg7
{[%clk 0:02:28]} 6. cxd5 {[%clk 0:02:51.9]} 6... Qxd5 {[%clk 0:02:28.9]} 7. Bc4
{[%clk 0:02:49]} 7... Qd8 {[%clk 0:02:23.1]} 8. O-O {[%clk 0:02:48.7]} 8... Nc6
{[%clk 0:02:20.5]} 9. d4 {[%clk 0:02:48.9]} 9... cxd4 {[%clk 0:02:19.6]} 10.
Nxd4 {[%clk 0:02:49.8]} 10... O-O {[%clk 0:02:18.4]} 11. Nxc6 {[%clk 0:02:49.3]}
11... bxc6 {[%clk 0:02:19.3]} 12. Nd2 {[%clk 0:02:44.7]} 12... Qc7 {[%clk
0:02:11.2]} 13. h3 {[%clk 0:02:44.4]} 13... Bf5 {[%clk 0:02:06.6]} 14. Qe2
{[%clk 0:02:43.4]} 14... Rfd8 {[%clk 0:02:06.4]} 15. Rac1 {[%clk 0:02:42.3]}
15... Qa5 {[%clk 0:02:06.4]} 16. Bc3 {[%clk 0:02:30.9]} 16... Qa3 {[%clk
0:01:46.4]} 17. Nf3 {[%clk 0:02:29.7]} 17... a5 {[%clk 0:01:28.5]} 18. Ne5
{[%clk 0:02:28.4]} 18... Nd5 {[%clk 0:01:06.6]} 19. Bb2 {[%clk 0:02:28.4]} 19...
Qd6 {[%clk 0:01:06.2]} 20. f4 {[%clk 0:02:07.2]} 20... Be6 {[%clk 0:01:05.9]}
21. Rfd1 {[%clk 0:02:00.7]} 21... Rac8 {[%clk 0:00:57.7]} 22. Qf2 {[%clk
0:01:57.2]} 22... Qb8 {[%clk 0:00:57.3]} 23. e4 {[%clk 0:01:55.5]} 23... Nxf4
{[%clk 0:00:50.3]} 24. Rxd8+ {[%clk 0:00:59]} 24... Rxd8 {[%clk 0:00:51.2]} 25.
Qxf4 {[%clk 0:00:48.9]} 25... Bxc4 {[%clk 0:00:48.2]} 26. Rxc4 {[%clk
0:00:47.7]} 26... Bf6 {[%clk 0:00:46.1]} 27. Rc2 {[%clk 0:00:36.5]} 27... Rd1+
{[%clk 0:00:43.9]} 28. Kh2 {[%clk 0:00:36.2]} 28... Rb1 {[%clk 0:00:42.1]} 29.
Bc3 {[%clk 0:00:35.1]} 29... Qd6 {[%clk 0:00:20.9]} 30. Nxg6 {[%clk 0:00:31.6]}
30... Qd1 {[%clk 0:00:15.6]} 31. Bxf6 {[%clk 0:00:30.7]} 31... hxg6 {[%clk
0:00:08.4]} 32. Qb8+ {[%clk 0:00:29.2]} 1-0

[Event "*** Titled Tuesday Blitz"]
[Site "Chess.com"]
[Date "2021.03.09"]
[Round "10"]
[White "c_r_e_e_p_e_r"]
[Black "mariofs"]
[Result "0-1"]
[WhiteElo "2346"]
[BlackElo "2205"]
[TimeControl "180+1"]
[EndTime "11:59:04 PST"]
[Termination "mariofs won on time"]

1. e4 {[%clk 0:03:00.9]} 1... c5 {[%clk 0:03:00]} 2. Nf3 {[%clk 0:03:01.1]} 2...
Nc6 {[%clk 0:03:00.5]} 3. d4 {[%clk 0:03:01.7]} 3... cxd4 {[%clk 0:03:01.4]} 4.
Nxd4 {[%clk 0:03:02.4]} 4... g6 {[%clk 0:03:02.3]} 5. c4 {[%clk 0:03:02.1]} 5...
Nf6 {[%clk 0:03:02]} 6. Nc3 {[%clk 0:03:01.8]} 6... Bg7 {[%clk 0:03:02.2]} 7.
Be3 {[%clk 0:03:02.3]} 7... O-O {[%clk 0:03:02.1]} 8. Be2 {[%clk 0:03:02.8]}
8... d6 {[%clk 0:03:02.3]} 9. O-O {[%clk 0:03:03.4]} 9... Bd7 {[%clk 0:03:02.8]}
10. Kh1 {[%clk 0:03:02.4]} 10... Nxd4 {[%clk 0:03:01.1]} 11. Bxd4 {[%clk
0:03:03.3]} 11... Bc6 {[%clk 0:03:01.7]} 12. Qd3 {[%clk 0:03:03.9]} 12... Nd7
{[%clk 0:02:58.7]} 13. Bxg7 {[%clk 0:03:04.5]} 13... Kxg7 {[%clk 0:02:58.4]} 14.
f4 {[%clk 0:03:05.3]} 14... Nc5 {[%clk 0:02:54.9]} 15. Qd4+ {[%clk 0:03:05.3]}
15... Kg8 {[%clk 0:02:53.7]} 16. b4 {[%clk 0:03:05.4]} 16... Ne6 {[%clk
0:02:53.6]} 17. Qe3 {[%clk 0:03:05.6]} 17... Qb6 {[%clk 0:02:46.3]} 18. c5
{[%clk 0:03:02.1]} 18... dxc5 {[%clk 0:02:45.7]} 19. f5 {[%clk 0:03:02.7]} 19...
cxb4 {[%clk 0:02:40.8]} 20. Qh6 {[%clk 0:02:41.1]} 20... bxc3 {[%clk 0:02:27]}
21. fxe6 {[%clk 0:02:40.8]} 21... fxe6 {[%clk 0:02:27.9]} 22. Bg4 {[%clk
0:02:26.2]} 22... Bxe4 {[%clk 0:02:26.1]} 23. h4 {[%clk 0:02:19.1]} 23... Bf5
{[%clk 0:02:24]} 24. h5 {[%clk 0:02:13.6]} 24... Rf6 {[%clk 0:01:59.3]} 25. Bxf5
{[%clk 0:02:06.5]} 25... exf5 {[%clk 0:01:55.6]} 26. Rae1 {[%clk 0:02:03]} 26...
Rf7 {[%clk 0:01:27.6]} 27. Re3 {[%clk 0:01:58.4]} 27... Rg7 {[%clk 0:01:10.9]}
28. Rfe1 {[%clk 0:01:55.9]} 28... Re8 {[%clk 0:01:09.6]} 29. Re6 {[%clk
0:01:54.3]} 29... Qf2 {[%clk 0:01:03.9]} 30. hxg6 {[%clk 0:01:54.5]} 30... hxg6
{[%clk 0:00:59.3]} 31. R1e3 {[%clk 0:01:07.4]} 31... c2 {[%clk 0:00:51.7]} 32.
Rf3 {[%clk 0:00:43]} 32... Qd4 {[%clk 0:00:23]} 0-1

[Event "*** Titled Tuesday Blitz"]
[Site "Chess.com"]
[Date "2021.03.09"]
[Round "10"]
[White "kingnb"]
[Black "bogcsab"]
[Result "1-0"]
[WhiteElo "2565"]
[BlackElo "2153"]
[TimeControl "180+1"]
[EndTime "11:59:05 PST"]
[Termination "kingnb won on time"]

1. d4 {[%clk 0:03:00.1]} 1... Nf6 {[%clk 0:02:59.2]} 2. Nf3 {[%clk 0:03:01]}
2... g6 {[%clk 0:02:59.1]} 3. Bg5 {[%clk 0:03:01.4]} 3... Bg7 {[%clk 0:02:58.8]}
4. Nbd2 {[%clk 0:03:02]} 4... h6 {[%clk 0:02:58.7]} 5. Bxf6 {[%clk 0:03:01.7]}
5... Bxf6 {[%clk 0:02:58.5]} 6. e4 {[%clk 0:03:02.6]} 6... d6 {[%clk 0:02:57.6]}
7. Bd3 {[%clk 0:03:03.1]} 7... Nd7 {[%clk 0:02:57.7]} 8. O-O {[%clk 0:03:03.7]}
8... e5 {[%clk 0:02:57.7]} 9. c3 {[%clk 0:03:04]} 9... Bg7 {[%clk 0:02:57.6]}
10. Nc4 {[%clk 0:03:04.4]} 10... O-O {[%clk 0:02:56]} 11. Ne3 {[%clk 0:03:03.3]}
11... c6 {[%clk 0:02:54.4]} 12. Qe2 {[%clk 0:03:02.9]} 12... Qe7 {[%clk
0:02:54.4]} 13. Rfd1 {[%clk 0:03:03.1]} 13... Nb6 {[%clk 0:02:51.7]} 14. dxe5
{[%clk 0:03:00.5]} 14... dxe5 {[%clk 0:02:51.1]} 15. Rac1 {[%clk 0:03:00.6]}
15... f5 {[%clk 0:02:46.6]} 16. exf5 {[%clk 0:02:56.9]} 16... gxf5 {[%clk
0:02:46.8]} 17. Nc4 {[%clk 0:02:56.3]} 17... e4 {[%clk 0:02:43.5]} 18. Nxb6
{[%clk 0:02:53.9]} 18... axb6 {[%clk 0:02:41.3]} 19. Bc4+ {[%clk 0:02:54.8]}
19... Kh7 {[%clk 0:02:29.6]} 20. Nd4 {[%clk 0:02:54.9]} 20... Bd7 {[%clk
0:02:25.1]} 21. f3 {[%clk 0:02:54.4]} 21... Rae8 {[%clk 0:02:02.9]} 22. fxe4
{[%clk 0:02:53.1]} 22... b5 {[%clk 0:01:57.7]} 23. Bb3 {[%clk 0:02:32.9]} 23...
Qc5 {[%clk 0:01:55.1]} 24. Bc2 {[%clk 0:02:25.9]} 24... fxe4 {[%clk 0:01:45.5]}
25. Bxe4+ {[%clk 0:01:58.7]} 25... Bf5 {[%clk 0:01:36.2]} 26. Bxf5+ {[%clk
0:01:58]} 26... Qxf5 {[%clk 0:01:13.7]} 27. Nxf5 {[%clk 0:01:02.7]} 27... Rxe2
{[%clk 0:01:11.6]} 28. g4 {[%clk 0:01:03.6]} 28... Be5 {[%clk 0:00:59.9]} 29.
Re1 {[%clk 0:01:01]} 29... Bxh2+ {[%clk 0:00:48.8]} 30. Kh1 {[%clk 0:00:59.2]}
30... Bf4 {[%clk 0:00:44.1]} 31. Rxe2 {[%clk 0:00:57.2]} 31... Bxc1 {[%clk
0:00:43.9]} 32. Kg2 {[%clk 0:00:48.5]} 32... h5 {[%clk 0:00:30.3]} 33. Kf3
{[%clk 0:00:46.9]} 33... hxg4+ {[%clk 0:00:26.8]} 34. Kxg4 {[%clk 0:00:46.7]}
34... Kg6 {[%clk 0:00:19.2]} 35. Nd6 {[%clk 0:00:41.5]} 35... Rf4+ {[%clk
0:00:10.9]} 36. Kg3 {[%clk 0:00:41.6]} 36... b6 {[%clk 0:00:04.6]} 37. Nc8
{[%clk 0:00:41.7]} 1-0

[Event "*** Titled Tuesday Blitz"]
[Site "Chess.com"]
[Date "2021.03.09"]
[Round "10"]
[White "Eloist"]
[Black "IANOV0007"]
[Result "0-1"]
[WhiteElo "2337"]
[BlackElo "2492"]
[TimeControl "180+1"]
[EndTime "11:59:06 PST"]
[Termination "IANOV0007 won on time"]

1. e4 {[%clk 0:03:00.9]} 1... d6 {[%clk 0:02:59]} 2. d4 {[%clk 0:03:00.8]} 2...
g6 {[%clk 0:02:59]} 3. Nc3 {[%clk 0:03:01.2]} 3... Bg7 {[%clk 0:02:58.8]} 4. Nf3
{[%clk 0:03:01.6]} 4... a6 {[%clk 0:02:58.8]} 5. Bc4 {[%clk 0:03:01.2]} 5... e6
{[%clk 0:02:58.1]} 6. a4 {[%clk 0:03:00.6]} 6... b6 {[%clk 0:02:57.1]} 7. O-O
{[%clk 0:03:00.3]} 7... Ne7 {[%clk 0:02:56.4]} 8. Re1 {[%clk 0:02:59.9]} 8...
Nd7 {[%clk 0:02:55.7]} 9. h3 {[%clk 0:02:56.4]} 9... Bb7 {[%clk 0:02:54.9]} 10.
Bf4 {[%clk 0:02:55.1]} 10... h6 {[%clk 0:02:52.6]} 11. Qd2 {[%clk 0:02:54.6]}
11... g5 {[%clk 0:02:52.6]} 12. Bg3 {[%clk 0:02:53.4]} 12... Ng6 {[%clk
0:02:52.5]} 13. Rad1 {[%clk 0:02:52.3]} 13... O-O {[%clk 0:02:51]} 14. Bd3
{[%clk 0:02:43.4]} 14... e5 {[%clk 0:02:35.7]} 15. d5 {[%clk 0:02:34.5]} 15...
Nc5 {[%clk 0:02:31]} 16. Bf1 {[%clk 0:02:13]} 16... a5 {[%clk 0:02:28.2]} 17.
Bb5 {[%clk 0:02:10.9]} 17... Bc8 {[%clk 0:02:26.8]} 18. Qe3 {[%clk 0:01:52.3]}
18... f5 {[%clk 0:02:24]} 19. exf5 {[%clk 0:01:48.1]} 19... Bxf5 {[%clk
0:02:23.9]} 20. Qc1 {[%clk 0:01:25]} 20... Nf4 {[%clk 0:02:19.2]} 21. Nd2 {[%clk
0:01:20.2]} 21... Qf6 {[%clk 0:02:14]} 22. f3 {[%clk 0:01:15.3]} 22... Qg6
{[%clk 0:02:08.4]} 23. Nde4 {[%clk 0:01:13.1]} 23... h5 {[%clk 0:01:55.3]} 24.
Qe3 {[%clk 0:01:01.6]} 24... Rf7 {[%clk 0:01:51.1]} 25. Bf1 {[%clk 0:00:58.3]}
25... Raf8 {[%clk 0:01:48.2]} 26. Nxc5 {[%clk 0:00:48.8]} 26... bxc5 {[%clk
0:01:46.8]} 27. Ne4 {[%clk 0:00:46.5]} 27... g4 {[%clk 0:01:37.4]} 28. fxg4
{[%clk 0:00:42]} 28... hxg4 {[%clk 0:01:36.5]} 29. h4 {[%clk 0:00:41.1]} 29...
Nh5 {[%clk 0:01:34.4]} 30. Bd3 {[%clk 0:00:37.2]} 30... Bh6 {[%clk 0:01:32.5]}
31. Ng5 {[%clk 0:00:36]} 31... Bxg5 {[%clk 0:01:25.6]} 32. hxg5 {[%clk
0:00:34.5]} 32... Bxd3 {[%clk 0:01:21.3]} 33. Rxd3 {[%clk 0:00:25.3]} 33... Nf4
{[%clk 0:01:18.4]} 34. Bxf4 {[%clk 0:00:22.6]} 34... Rxf4 {[%clk 0:01:17.6]} 35.
Qg3 {[%clk 0:00:16.8]} 35... Qxg5 {[%clk 0:01:13.6]} 36. b3 {[%clk 0:00:16]}
36... Qf5 {[%clk 0:01:07.3]} 37. Qh4 {[%clk 0:00:13.1]} 37... Kg7 {[%clk
0:01:04.4]} 38. Rg3 {[%clk 0:00:10.1]} 38... Rf6 {[%clk 0:00:52.3]} 39. c3
{[%clk 0:00:03.7]} 39... Qg6 {[%clk 0:00:42.1]} 0-1

[Event "*** Titled Tuesday Blitz"]
[Site "Chess.com"]
[Date "2021.03.09"]
[Round "10"]
[White "Lion-Al-Messi"]
[Black "Promacherr"]
[Result "1-0"]
[WhiteElo "2519"]
[BlackElo "2624"]
[TimeControl "180+1"]
[EndTime "11:59:08 PST"]
[Termination "Lion-Al-Messi won by resignation"]

1. d4 {[%clk 0:02:57.2]} 1... Nf6 {[%clk 0:03:00]} 2. Nf3 {[%clk 0:02:57.6]}
2... c5 {[%clk 0:02:59.6]} 3. Nc3 {[%clk 0:02:58.3]} 3... cxd4 {[%clk
0:02:59.2]} 4. Nxd4 {[%clk 0:02:59.2]} 4... d5 {[%clk 0:02:59.5]} 5. Nb3 {[%clk
0:03:00.1]} 5... Nc6 {[%clk 0:02:59.5]} 6. Bg5 {[%clk 0:03:00.3]} 6... e6 {[%clk
0:02:59.2]} 7. e4 {[%clk 0:03:00]} 7... d4 {[%clk 0:02:53.5]} 8. Ne2 {[%clk
0:02:57.2]} 8... e5 {[%clk 0:02:53.5]} 9. f4 {[%clk 0:02:51.3]} 9... Bb4+ {[%clk
0:02:44.3]} 10. c3 {[%clk 0:02:49.3]} 10... dxc3 {[%clk 0:02:37.2]} 11. Qxd8+
{[%clk 0:02:49.6]} 11... Nxd8 {[%clk 0:02:35.6]} 12. bxc3 {[%clk 0:02:49]} 12...
Bd6 {[%clk 0:02:29.1]} 13. Bxf6 {[%clk 0:02:48.9]} 13... gxf6 {[%clk 0:02:29.2]}
14. O-O-O {[%clk 0:02:47.6]} 14... Ba3+ {[%clk 0:02:28.9]} 15. Kc2 {[%clk
0:02:47.3]} 15... f5 {[%clk 0:02:24.7]} 16. fxe5 {[%clk 0:02:46.1]} 16... fxe4
{[%clk 0:02:24.2]} 17. Ned4 {[%clk 0:02:46.4]} 17... O-O {[%clk 0:02:19]} 18.
Bc4 {[%clk 0:02:39.1]} 18... a6 {[%clk 0:02:12]} 19. Rhe1 {[%clk 0:02:38.3]}
19... Nc6 {[%clk 0:02:03.8]} 20. Rxe4 {[%clk 0:02:35]} 20... Nxd4+ {[%clk
0:01:57.9]} 21. Nxd4 {[%clk 0:02:35.9]} 21... b5 {[%clk 0:01:58.3]} 22. Bd5
{[%clk 0:02:35.6]} 22... Ra7 {[%clk 0:01:58.9]} 23. Nc6 {[%clk 0:02:35.4]} 23...
Rc7 {[%clk 0:01:57.6]} 24. Kb3 {[%clk 0:02:35.7]} 24... Bc5 {[%clk 0:01:56.8]}
25. Rd3 {[%clk 0:02:35.7]} 25... Bf5 {[%clk 0:01:48.8]} 26. Rg3+ {[%clk
0:02:35.6]} 26... Kh8 {[%clk 0:01:48.9]} 27. Rf4 {[%clk 0:02:34.2]} 27... Bg6
{[%clk 0:01:44.4]} 28. Nd4 {[%clk 0:02:31.8]} 28... Re8 {[%clk 0:01:42.2]} 29.
e6 {[%clk 0:02:04.3]} 29... Bd6 {[%clk 0:00:54.7]} 30. exf7 {[%clk 0:02:04.4]}
30... Rf8 {[%clk 0:00:49.4]} 31. Rxg6 {[%clk 0:02:04.6]} 31... hxg6 {[%clk
0:00:42.6]} 32. Rh4+ {[%clk 0:02:04.7]} 32... Kg7 {[%clk 0:00:42]} 33. Ne6+
{[%clk 0:02:05.6]} 33... Kf6 {[%clk 0:00:37.6]} 34. Nxf8 {[%clk 0:01:55.2]}
34... Bxf8 {[%clk 0:00:38.5]} 35. Rh8 {[%clk 0:01:50.7]} 35... Ke7 {[%clk
0:00:38.7]} 36. Rg8 {[%clk 0:01:50.9]} 36... Rc5 {[%clk 0:00:37.3]} 37. Be4
{[%clk 0:01:48.8]} 37... Kxf7 {[%clk 0:00:34.7]} 38. Rxg6 {[%clk 0:01:48.7]}
38... a5 {[%clk 0:00:35.1]} 39. Rc6 {[%clk 0:01:47.1]} 39... a4+ {[%clk
0:00:32.9]} 40. Kc2 {[%clk 0:01:44.7]} 40... Re5 {[%clk 0:00:33]} 41. Bf3 {[%clk
0:01:44.9]} 41... Bg7 {[%clk 0:00:32.5]} 42. Rc7+ {[%clk 0:01:45.1]} 42... Kg6
{[%clk 0:00:32.7]} 43. h4 {[%clk 0:01:45.2]} 43... Re3 {[%clk 0:00:31.1]} 44.
h5+ {[%clk 0:01:46.1]} 44... Kh6 {[%clk 0:00:31.3]} 45. Kd2 {[%clk 0:01:43.7]}
45... Re8 {[%clk 0:00:26.9]} 46. Kd3 {[%clk 0:01:40.1]} 46... Rd8+ {[%clk
0:00:26.7]} 47. Kc2 {[%clk 0:01:38.8]} 47... Be5 {[%clk 0:00:24.3]} 48. Rc6+
{[%clk 0:01:38]} 48... Kg5 {[%clk 0:00:23.7]} 49. Rg6+ {[%clk 0:01:35.4]} 49...
Kf4 {[%clk 0:00:23.7]} 50. Rg4+ {[%clk 0:01:35.1]} 50... Kf5 {[%clk 0:00:23]}
51. h6 {[%clk 0:01:33.7]} 51... Bf4 {[%clk 0:00:19.4]} 52. h7 {[%clk 0:01:18.4]}
52... Rh8 {[%clk 0:00:14.4]} 53. Rg7 {[%clk 0:01:11.9]} 53... Kf6 {[%clk
0:00:12.9]} 54. Rb7 {[%clk 0:01:11.4]} 54... Bh6 {[%clk 0:00:12.1]} 55. Bd5
{[%clk 0:01:11.1]} 55... Bg7 {[%clk 0:00:12.3]} 56. Bg8 {[%clk 0:01:11.4]} 1-0

[Event "*** Titled Tuesday Blitz"]
[Site "Chess.com"]
[Date "2021.03.09"]
[Round "10"]
[White "queen_iryna"]
[Black "MerryPoppies"]
[Result "1-0"]
[WhiteElo "2346"]
[BlackElo "2192"]
[TimeControl "180+1"]
[EndTime "11:59:09 PST"]
[Termination "queen_iryna won by resignation"]

1. e4 {[%clk 0:03:00.9]} 1... c6 {[%clk 0:02:53.9]} 2. d4 {[%clk 0:03:00.1]}
2... d5 {[%clk 0:02:53.4]} 3. Nc3 {[%clk 0:03:00.8]} 3... dxe4 {[%clk
0:02:48.9]} 4. Nxe4 {[%clk 0:03:00.9]} 4... Bf5 {[%clk 0:02:48.7]} 5. Ng3 {[%clk
0:03:00.5]} 5... Bg6 {[%clk 0:02:39.7]} 6. h4 {[%clk 0:03:00.6]} 6... h6 {[%clk
0:02:38.8]} 7. Nf3 {[%clk 0:02:57.5]} 7... Nd7 {[%clk 0:02:37.6]} 8. h5 {[%clk
0:02:56.7]} 8... Bh7 {[%clk 0:02:36]} 9. Bd3 {[%clk 0:02:57.3]} 9... Bxd3 {[%clk
0:02:35.7]} 10. Qxd3 {[%clk 0:02:58.2]} 10... Ngf6 {[%clk 0:02:31.9]} 11. Bd2
{[%clk 0:02:57.7]} 11... e6 {[%clk 0:02:31.5]} 12. O-O-O {[%clk 0:02:54.6]}
12... Qc7 {[%clk 0:02:30.4]} 13. Ne4 {[%clk 0:02:54.2]} 13... Nxe4 {[%clk
0:02:29.4]} 14. Qxe4 {[%clk 0:02:55.1]} 14... Nf6 {[%clk 0:02:29.5]} 15. Qe2
{[%clk 0:02:54.8]} 15... O-O-O {[%clk 0:02:29]} 16. Kb1 {[%clk 0:02:51.6]} 16...
Bd6 {[%clk 0:02:27.4]} 17. g3 {[%clk 0:02:51.2]} 17... c5 {[%clk 0:02:21.5]} 18.
dxc5 {[%clk 0:02:26.7]} 18... Qxc5 {[%clk 0:02:14.7]} 19. Be3 {[%clk 0:02:21.3]}
19... Qa5 {[%clk 0:02:11.5]} 20. Nd4 {[%clk 0:01:49.6]} 20... Nd5 {[%clk
0:02:05.7]} 21. Nb3 {[%clk 0:01:44.6]} 21... Qa4 {[%clk 0:02:02.9]} 22. Rd4
{[%clk 0:01:31.4]} 22... Qd7 {[%clk 0:01:07.8]} 23. Rhd1 {[%clk 0:01:26.8]}
23... Kb8 {[%clk 0:01:04.5]} 24. c4 {[%clk 0:01:23.7]} 24... Be5 {[%clk
0:00:57.8]} 25. R4d2 {[%clk 0:01:10.9]} 25... Nc3+ {[%clk 0:00:09.9]} 26. bxc3
{[%clk 0:01:09.6]} 26... Qc7 {[%clk 0:00:10.5]} 27. Rxd8+ {[%clk 0:01:05.6]}
27... Rxd8 {[%clk 0:00:11.4]} 28. Rxd8+ {[%clk 0:01:05.2]} 28... Qxd8 {[%clk
0:00:12.3]} 29. Bxa7+ {[%clk 0:00:59.4]} 29... Kxa7 {[%clk 0:00:13.2]} 30. Qxe5
{[%clk 0:00:59.5]} 30... Qd1+ {[%clk 0:00:13.5]} 31. Kb2 {[%clk 0:00:59.3]}
31... Qf1 {[%clk 0:00:11.2]} 32. Qe3+ {[%clk 0:00:55]} 32... Kb8 {[%clk
0:00:11.5]} 33. Nd4 {[%clk 0:00:47.7]} 33... Qxc4 {[%clk 0:00:10.5]} 34. Qe5+
{[%clk 0:00:44.1]} 34... Ka7 {[%clk 0:00:09.7]} 35. Qe2 {[%clk 0:00:30.7]} 35...
Qc5 {[%clk 0:00:08.5]} 36. Qe3 {[%clk 0:00:28.1]} 36... Qb6+ {[%clk 0:00:06.9]}
37. Nb5+ {[%clk 0:00:24.1]} 1-0